bitfinex/quotes_SOLUSD_20251201
["timestamp","ask_amount","ask_price","bid_price","bid_amount"]
[1764570961191,3.48,126.62,126.6,3.5807831]
[1764570961909,4.16,126.62,126.58,11.48035953]
[1764570962098,4.16,126.62,126.59,0.7]
[1764570962297,20.26899829,126.61,126.57,11.4814619]
[1764570962493,3.48,126.6,126.57,8.6006788]
[1764570962810,3.48,126.6,126.57,11.4814619]
[1764570963185,3.48,126.6,126.57,8.6006788]
[1764570963906,3.48,126.6,126.57,11.4814619]
[1764570964308,3.48,126.6,126.58,0.7]
[1764570964508,3.48,126.6,126.59,2.8807831]
[1764570965003,3.48,126.6,126.59,3.5807831]
[1764570965923,3.48,126.6,126.59,0.7]
[1764570966905,3.48,126.6,126.58,3.5807831]
[1764570967109,3.48,126.6,126.58,0.7]
[1764570970128,11.37896543,126.6,126.58,0.7]
[1764570970295,14.25974853,126.6,126.56,3.5807831]
[1764570970495,14.93974853,126.6,126.56,3.5807831]
[1764570970709,14.93974853,126.6,126.57,0.7]
[1764570971214,12.05896543,126.6,126.57,0.7]
[1764570971423,11.37896543,126.6,126.57,3.5807831]
[1764570971919,11.37896543,126.6,126.58,0.7]
[1764570972612,73.37896543,126.6,126.58,0.7]
[1764570973328,69.89896543,126.6,126.58,0.7]
[1764570973495,65.48,126.6,126.58,3.5807831]
[1764570973697,62.0,126.6,126.59,2.8807831]
[1764570974004,65.48,126.6,126.59,0.7]
[1764570978129,65.48,126.6,126.59,11.48030122]
[1764570978428,3.48,126.63,126.59,31.22909654]
[1764570978635,3.48,126.63,126.61,2.8807831]
[1764570979236,3.48,126.63,126.61,3.5807831]
[1764570980435,3.48,126.63,126.62,0.7]
[1764570980636,3.48,126.63,126.61,3.5807831]
[1764570985035,3.48,126.63,126.62,3.5807831]
[1764570985329,62.0,126.64,126.62,3.5807831]
[1764570986226,62.0,126.64,126.63,3.6007831]
[1764570987050,0.2,126.66,126.63,11.49780592]
[1764570987341,0.2,126.66,126.64,3.6007831]
[1764570987717,0.2,126.66,126.65,0.72]
[1764570988234,0.2,126.66,126.64,3.6007831]
[1764570989053,0.86,126.66,126.63,10.77780592]
[1764570989222,3.48,126.65,126.63,11.49780592]
[1764570989732,3.48,126.65,126.64,0.72]
[1764570991447,3.48,126.65,126.63,11.49780592]
[1764570991652,3.48,126.65,126.64,0.72]
[1764570994744,3.27175373,126.65,126.64,0.72]
[1764571005479,3.27175373,126.65,126.63,13.11298223]
[1764571005859,3.27175373,126.65,126.64,0.72]
[1764571010785,3.27175373,126.65,126.62,4.49595941]
[1764571010998,0.66,126.64,126.61,0.72]
[1764571011160,3.48,126.63,126.61,0.72]
[1764571012777,3.48,126.63,126.61,5.21595941]
[1764571012977,3.48,126.63,126.62,0.72]
[1764571013281,3.48,126.63,126.62,5.21595941]
[1764571016283,3.48,126.63,126.62,13.11360591]
[1764571017592,65.48,126.65,126.62,13.11360591]
[1764571017782,65.48,126.65,126.64,4.49595941]
[1764571017981,3.48,126.65,126.64,4.49595941]
[1764571018277,3.48,126.65,126.64,5.16595941]
[1764571019907,3.48,126.65,126.64,13.06235865]
[1764571020475,0.2,126.66,126.64,13.06235865]
[1764571020698,0.2,126.66,126.65,5.16595941]
[1764571021995,0.2,126.66,126.65,0.67]
[1764571022283,0.2,126.66,126.64,13.06235865]
[1764571023808,0.2,126.66,126.64,12.39235865]
[1764571023985,0.2,126.66,126.65,0.67]
[1764571024705,0.2,126.66,126.65,13.06173516]
[1764571025378,0.2,126.66,126.65,8.56577575]
[1764571025676,0.2,126.66,126.65,7.89577575]
[1764571025899,0.2,126.66,126.65,13.06173516]
[1764571026201,0.2,126.66,126.65,7.89577575]
[1764571026403,0.9,126.66,126.63,13.0626056]
[1764571026590,3.48,126.65,126.63,13.0626056]
[1764571027309,3.48,126.65,126.64,0.67]
[1764571027483,3.48,126.65,126.64,5.16595941]
[1764571027879,3.48,126.65,126.64,0.67]
[1764571028184,3.48,126.65,126.64,5.16595941]
[1764571029384,0.2,126.66,126.64,5.16595941]
[1764571029587,0.2,126.66,126.65,0.67]
[1764571030108,0.2,126.66,126.65,5.16595941]
[1764571031199,0.2,126.66,126.65,13.06173516]
[1764571037596,65.18,126.69,126.66,0.67]
[1764571037796,65.18,126.69,126.68,4.49595941]
[1764571039156,0.2,126.7,126.68,13.05986531]
[1764571039465,0.2,126.7,126.69,5.16595941]
[1764571040341,0.2,126.7,126.69,8.32939015]
[1764571040523,0.2,126.7,126.69,16.22267296]
[1764571046439,0.2,126.72,126.71,16.308864]
[1764571046641,0.2,126.72,126.71,29.48078282]
[1764571047533,0.2,126.72,126.71,37.37281975]
[1764571050257,0.2,126.72,126.71,28.38090093]
[1764571050428,0.2,126.72,126.71,37.37281975]
[1764571050754,0.2,126.72,126.71,40.53525007]
[1764571050934,0.2,126.72,126.71,37.05525007]
[1764571051117,0.2,126.72,126.71,40.53525007]
[1764571055762,0.2,126.76,126.72,0.7]
[1764571056057,0.2,126.76,126.75,4.49595941]
[1764571056551,0.2,126.76,126.75,2.87116694]
[1764571057955,0.2,126.76,126.75,10.76071329]
[1764571058458,0.1,126.77,126.75,31.79341222]
[1764571058663,0.1,126.77,126.76,3.57116694]
[1764571060163,0.1,126.77,126.76,11.46009089]
[1764571060744,0.1,126.78,126.77,14.3558347]
[1764571061045,0.1,126.78,126.77,18.5358347]
[1764571061249,0.1,126.78,126.77,7.05116694]
[1764571061641,0.1,126.78,126.77,10.21234764]
[1764571062058,0.1,126.78,126.77,18.10064928]
[1764571065563,0.1,126.78,126.77,14.52948234]
[1764571065768,0.1,126.78,126.77,13.92064928]
[1764571065968,0.1,126.78,126.77,14.62064928]
[1764571067174,0.1,126.78,126.77,26.10531704]
[1764571067370,0.1,126.79,126.77,45.82607116]
[1764571067671,38.21442154,126.83,126.78,18.5358347]
[1764571067857,38.21442154,126.83,126.82,2.87116694]
[1764571068250,38.21442154,126.83,126.82,3.57116694]
[1764571068759,38.21442154,126.83,126.82,2.87116694]
[1764571069263,38.21442154,126.83,126.82,10.75635855]
[1764571069458,38.21442154,126.83,126.82,11.45635855]
[1764571069652,38.21442154,126.83,126.82,31.24522255]
[1764571069972,38.7833336,126.84,126.82,42.72989031]
[1764571070271,38.7833336,126.84,126.83,3.57116694]
[1764571070760,1e-08,126.84,126.83,18.5358347]
[1764571071072,1e-08,126.84,126.83,7.05116694]
[1764571071278,1e-08,126.84,126.83,14.93573683]
[1764571073371,1e-08,126.84,126.83,14.23573683]
[1764571073881,1e-08,126.84,126.83,14.93573683]
[1764571074061,1e-08,126.84,126.83,11.45573683]
[1764571075783,1e-08,126.84,126.83,10.75573683]
[1764571077689,0.70000001,126.84,126.83,10.75573683]
[1764571078002,0.70000001,126.84,126.82,10.75629499]
[1764571078373,0.70000001,126.84,126.83,2.87116694]
[1764571079464,0.70000001,126.84,126.83,10.75573683]
[1764571079964,1e-08,126.84,126.83,7.88456989]
[1764571080187,0.70000001,126.84,126.83,10.75573683]
[1764571080582,1e-08,126.84,126.83,10.75573683]
[1764571081462,0.70000001,126.84,126.83,10.75573683]
[1764571083470,1e-08,126.84,126.83,11.44573683]
[1764571084593,1e-08,126.84,126.83,39.23926859]
[1764571087094,1e-08,126.85,126.84,0.69]
[1764571087307,1e-08,126.87,126.86,16.308864]
[1764571087468,41.05898181,126.88,126.86,22.66003094]
[1764571087664,41.72789387,126.89,126.87,3.56116694]
[1764571087868,41.72789387,126.89,126.88,6.35116694]
[1764571088069,41.72789387,126.89,126.88,7.04116694]
[1764571088297,48.12898868,126.92,126.88,27.33577962]
[1764571088497,48.12898868,126.92,126.9,16.308864]
[1764571088797,43.46571798,126.91,126.9,19.18003094]
[1764571089012,43.46571798,126.91,126.9,27.06025158]
[1764571089217,42.76571798,126.91,126.9,27.06025158]
[1764571089508,42.76571798,126.91,126.9,27.75025158]
[1764571089804,42.76571798,126.91,126.9,39.23491934]
[1764571090004,42.76571798,126.91,126.9,42.71491934]
[1764571090895,48.12898868,126.92,126.9,42.71491934]
[1764571091086,48.12898868,126.92,126.91,3.56116694]
[1764571091285,33.34825223,126.92,126.91,3.56116694]
[1764571091604,1e-08,126.93,126.92,9.49994492]
[1764571091784,1.70673616,126.94,126.92,27.33577962]
[1764571091988,1e-08,126.94,126.93,40.16464362]
[1764571092386,45.04136619,126.95,126.93,63.83982019]
[1764571092580,45.04136619,126.95,126.94,18.5258347]
[1764571093107,45.04136619,126.95,126.94,12.04773751]
[1764571093313,45.04136619,126.95,126.94,14.91890445]
[1764571093982,45.04136619,126.95,126.94,2.87116694]
[1764571094192,45.04136619,126.95,126.94,10.74890445]
[1764571096382,45.74136619,126.95,126.93,24.18702937]
[1764571096583,45.74136619,126.95,126.94,2.87116694]
[1764571097609,45.04136619,126.95,126.94,10.74890445]
[1764571100514,45.04136619,126.95,126.94,10.74890445]
[1764571106321,45.04136619,126.95,126.94,7.87773751]
[1764571106509,45.04136619,126.95,126.94,10.74890445]
[1764571106695,45.04136619,126.95,126.94,7.87773751]
[1764571107000,45.04136619,126.95,126.94,10.74890445]
[1764571107411,45.04136619,126.95,126.94,14.90890445]
[1764571107722,45.04136619,126.95,126.94,50.06874878]
[1764571108614,45.04136619,126.95,126.94,38.58408102]
[1764571110102,45.04136619,126.95,126.94,35.71291408]
[1764571110311,45.04136619,126.95,126.94,14.92890445]
[1764571113718,45.61027825,126.96,126.94,46.10791599]
[1764571113930,5.60653642,126.96,126.95,0.7]
[1764571114104,5.60653642,126.96,126.95,15.0558347]
[1764571114304,1e-08,126.96,126.95,22.93295167]
[1764571115026,1e-08,126.96,126.95,11.44828391]
[1764571116509,1e-08,126.96,126.95,14.22828391]
[1764571116930,1e-08,126.96,126.95,14.92828391]
[1764571118216,1e-08,126.96,126.95,38.60159225]
[1764571118421,1e-08,126.96,126.95,40.20143621]
[1764571120021,1e-08,126.96,126.95,35.03042531]
[1764571120234,1e-08,126.96,126.95,15.82812787]
[1764571121637,1e-08,126.96,126.95,12.34812787]
[1764571121638,0.70000001,126.96,126.95,12.34812787]
[1764571121838,0.70000001,126.96,126.95,7.87711697]
[1764571123123,0.70000001,126.96,126.95,4.4710109]
[1764571123421,1e-08,126.96,126.95,4.4710109]
[1764571123632,0.70000001,126.96,126.95,4.4710109]
[1764571123840,0.70000001,126.96,126.94,27.57208129]
[1764571124132,0.70000001,126.96,126.95,4.4710109]
[1764571124511,0.70000001,126.96,126.94,12.34874841]
[1764571124712,0.70000001,126.96,126.95,4.4710109]
[1764571127433,0.70000001,126.96,126.95,12.34812787]
[1764571130845,0.70000001,126.96,126.94,7.87740959]
[1764571131029,0.70000001,126.96,126.95,4.4710109]
[1764571132343,0.70000001,126.96,126.95,12.34812787]
[1764571136146,0.70000001,126.96,126.94,12.3484594]
[1764571136647,0.70000001,126.96,126.95,4.4710109]
[1764571137250,0.70000001,126.96,126.94,12.3484594]
[1764571138542,0.70000001,126.96,126.93,12.34936905]
[1764571138749,3.48,126.95,126.93,12.34936905]
[1764571139252,4.19,126.95,126.93,12.34936905]
[1764571142354,3.48,126.95,126.94,7.87773751]
[1764571142552,4.19,126.95,126.94,12.34874841]
[1764571144456,4.19,126.95,126.93,7.87835815]
[1764571144661,3.48,126.95,126.94,4.4710109]
[1764571146270,3.48,126.95,126.94,12.34874841]
[1764571146556,1e-08,126.96,126.94,24.86660151]
[1764571146760,1e-08,126.96,126.95,5.1510109]
[1764571147758,1e-08,126.96,126.95,13.02812787]
[1764571153347,1e-08,126.96,126.95,4.4710109]
[1764571153658,0.71000001,126.96,126.94,4.4710109]
[1764571153961,1e-08,126.96,126.95,4.4710109]
[1764571154966,1e-08,126.96,126.95,5.1510109]
[1764571155340,1e-08,126.96,126.95,13.02812787]
[1764571157342,1e-08,126.96,126.95,16.50812787]
[1764571160055,1e-08,126.96,126.95,32.81699187]
[1764571161841,1e-08,126.96,126.95,46.09794769]
[1764571162040,1e-08,126.96,126.95,41.62693679]
[1764571162243,1e-08,126.96,126.95,32.81699187]
[1764571164263,1e-08,126.96,126.95,29.33699187]
[1764571164468,1e-08,126.96,126.95,16.50812787]
[1764571165065,1e-08,126.96,126.95,12.34812787]
[1764571165957,1e-08,126.96,126.95,29.36699187]
[1764571166371,1e-08,126.96,126.95,32.84699187]
[1764571168569,1e-08,126.96,126.95,32.13699187]
[1764571168871,1e-08,126.96,126.95,15.82812787]
[1764571170373,1e-08,126.96,126.95,12.34812787]
[1764571171973,1e-08,126.96,126.94,12.34853484]
[1764571171974,0.67000001,126.96,126.94,12.34853484]
[1764571173153,1e-08,126.96,126.94,12.34853484]
[1764571173353,0.67000001,126.96,126.94,12.34853484]
[1764571174968,4.15000001,126.96,126.93,16.308864]
[1764571175277,4.15000001,126.96,126.93,28.6580505]
[1764571175456,0.67,126.95,126.93,28.6580505]
[1764571175658,0.67,126.95,126.94,4.4710109]
[1764571175972,3.48000001,126.96,126.94,4.4710109]
[1764571176374,4.15000001,126.96,126.94,4.4710109]
[1764571176574,4.15000001,126.96,126.95,4.4710109]
[1764571176968,4.15000001,126.96,126.95,12.34812787]
[1764571177169,4.15000001,126.96,126.95,4.4710109]
[1764571177479,4.15000001,126.96,126.94,12.34849425]
[1764571177785,4.15000001,126.96,126.95,4.4710109]
[1764571178490,4.15000001,126.96,126.95,10.7401514]
[1764571180076,4.15000001,126.96,126.95,7.87711697]
[1764571181283,4.15000001,126.96,126.94,10.74077194]
[1764571181467,0.67000001,126.96,126.94,10.74077194]
[1764571181789,4.15000001,126.96,126.94,10.74077194]
[1764571182579,4.15000001,126.96,126.94,7.87773751]
[1764571182879,0.67,126.95,126.94,7.87773751]
[1764571184183,4.15000001,126.96,126.94,7.87773751]
[1764571184870,4.15000001,126.96,126.94,10.74077194]
[1764571185073,4.15000001,126.96,126.94,7.87773751]
[1764571186379,3.48000001,126.96,126.94,10.74077194]
[1764571186685,0.67,126.95,126.94,7.87773751]
[1764571188160,3.48000001,126.96,126.94,7.87773751]
[1764571188366,4.15000001,126.96,126.94,10.74077194]
[1764571190885,0.67,126.95,126.93,7.87835734]
[1764571191587,0.67,126.95,126.93,10.74139177]
[1764571193687,3.48,126.94,126.93,23.68265245]
[1764571193993,3.48,126.94,126.91,10.74250324]
[1764571194190,0.67,126.93,126.92,7.87676102]
[1764571194397,0.67,126.93,126.9,11.45307327]
[1764571194592,3.48,126.92,126.9,7.87946881]
[1764571194786,2.86303443,126.91,126.9,7.87946881]
[1764571194977,3.53303443,126.91,126.86,11.45526919]
[1764571195289,4.15,126.9,126.87,11.45526919]
[1764571195690,3.48,126.9,126.88,2.86303443]
[1764571195888,4.19,126.9,126.87,19.33717935]
[1764571196288,0.71,126.93,126.89,2.86303443]
[1764571196486,4.19,126.93,126.9,2.86303443]
[1764571196798,7.05303443,126.93,126.89,8.80994493]
[1764571196999,0.71,126.92,126.89,8.80994493]
[1764571197377,0.71,126.92,126.89,11.67297936]
[1764571198101,0.71,126.92,126.89,16.69062297]
[1764571199001,0.71,126.92,126.89,20.2336574]
[1764571201006,8.58776263,126.94,126.9,0.68]
[1764571201206,1e-08,126.96,126.93,2.86303443]
[1764571201594,0.71,126.95,126.92,26.54755659]
[1764571201997,0.71,126.95,126.92,27.22755659]
[1764571202389,8.58651169,126.96,126.93,2.86303443]
[1764571203499,7.05303443,126.95,126.92,7.87855233]
[1764571203888,0.71,126.94,126.92,7.87855233]
[1764571207718,11.45115711,126.94,126.91,7.87651169]
[1764571208014,2.86303443,126.93,126.9,16.988864]
[1764571208210,6.34303443,126.92,126.9,16.988864]
[1764571208506,3.48,126.93,126.9,3.54303443]
[1764571208709,4.19,126.93,126.9,3.54303443]
[1764571209316,12.06851581,126.93,126.9,3.54303443]
[1764571210412,12.06851581,126.93,126.9,11.42324999]
[1764571212016,4.19,126.93,126.9,11.42324999]
[1764571212209,12.06837602,126.93,126.9,11.42324999]
[1764571212413,12.06837602,126.93,126.9,3.54303443]
[1764571215003,12.06837602,126.93,126.89,30.446871]
[1764571215004,2.86303443,126.91,126.85,16.988864]
[1764571215202,6.34303443,126.9,126.85,16.988864]
[1764571215492,6.34303443,126.9,126.86,27.23690956]
[1764571215704,4.19,126.9,126.86,26.55690956]
[1764571215991,4.19,126.9,126.87,0.68]
[1764571216308,4.19,126.9,126.87,8.56178986]
[1764571216784,14.93331604,126.9,126.87,0.68]
[1764571218295,7.05303443,126.9,126.87,0.68]
[1764571219203,14.93325599,126.9,126.87,0.68]
[1764571219805,14.93325599,126.9,126.87,8.56202531]
[1764571221817,14.22325599,126.9,126.87,7.88202531]
[1764571222022,14.93325599,126.9,126.87,8.56202531]
[1764571227419,7.87980908,126.91,126.88,3.52303443]
[1764571227719,12.07980908,126.91,126.88,3.52303443]
[1764571229320,6.34303443,126.92,126.89,0.66]
[1764571229518,4.2,126.92,126.89,3.52303443]
[1764571229705,3.58303443,126.91,126.88,31.57291217]
[1764571229906,0.72,126.91,126.88,11.40394266]
[1764571230126,7.06303443,126.92,126.88,11.40394266]
[1764571230428,7.06303443,126.92,126.88,10.74394266]
[1764571230632,7.06303443,126.92,126.89,0.66]
[1764571230832,14.94202892,126.92,126.89,0.66]
[1764571232436,0.72,126.91,126.87,31.57405283]
[1764571232607,3.58303443,126.91,126.87,11.40508332]
[1764571233114,0.72,126.9,126.87,11.40508332]
[1764571233318,2.86303443,126.91,126.88,0.66]
[1764571233319,3.58303443,126.91,126.88,0.66]
[1764571233720,0.72,126.91,126.88,0.66]
[1764571234718,11.35899449,126.92,126.88,11.40441432]
[1764571235034,11.35899449,126.92,126.89,2.86303443]
[1764571235218,11.35899449,126.92,126.89,3.52303443]
[1764571235418,12.07899449,126.92,126.89,3.52303443]
[1764571235811,3.48,126.91,126.89,3.52303443]
[1764571236734,3.48,126.91,126.89,0.66]
[1764571237239,8.59899449,126.92,126.89,0.66]
[1764571237536,3.48,126.91,126.89,0.66]
[1764571238334,69.57859172,126.93,126.89,11.4038718]
[1764571238537,13.2871833,126.94,126.9,4.47723838]
[1764571238714,8.59659392,126.96,126.91,4.47723838]
[1764571238912,12.28994492,126.95,126.91,5.13723838]
[1764571239130,13.00994492,126.95,126.92,0.66]
[1764571240012,12.28994492,126.95,126.92,0.66]
[1764571240213,12.28994492,126.95,126.92,8.53896554]
[1764571240612,13.00994492,126.95,126.92,8.53896554]
[1764571240814,20.88712997,126.95,126.92,8.53896554]
[1764571242939,1e-08,126.96,126.93,5.13723838]
[1764571243241,1e-08,126.96,126.94,5.13723838]
[1764571243242,3.48000001,126.96,126.94,5.13723838]
[1764571243411,4.20000001,126.96,126.93,23.68265245]
[1764571243616,8.67723839,126.96,126.92,28.23641275]
[1764571243816,8.67723839,126.96,126.93,0.66]
[1764571244738,8.67723839,126.96,126.93,8.53776002]
[1764571245535,4.20000001,126.96,126.93,8.53776002]
[1764571246938,8.67723839,126.96,126.93,8.53776002]
[1764571247434,25.36371734,126.96,126.93,7.87776002]
[1764571247937,20.88647896,126.96,126.93,8.53776002]
[1764571248162,12.28994493,126.96,126.93,7.87776002]
[1764571248341,1e-08,126.96,126.94,5.13723838]
[1764571248638,3.48,126.95,126.94,5.13723838]
[1764571248840,1e-08,126.96,126.94,4.47723838]
[1764571249029,1e-08,126.96,126.95,12.35435535]
[1764571249442,1e-08,126.96,126.95,13.01435535]
[1764571250838,1e-08,126.96,126.95,8.53711697]
[1764571251716,1e-08,126.96,126.95,0.66]
[1764571251916,3.48000001,126.96,126.94,8.53758187]
[1764571252936,4.20000001,126.96,126.93,8.5382796]
[1764571253317,3.48000001,126.96,126.93,8.5382796]
[1764571253536,3.48000001,126.96,126.94,0.66]
[1764571257836,3.48000001,126.96,126.94,5.13723838]
[1764571258041,3.48000001,126.96,126.94,0.66]
[1764571258240,15.83382699,126.96,126.93,0.72]
[1764571258526,15.83382699,126.96,126.94,0.72]
[1764571259039,3.48000001,126.96,126.94,0.72]
[1764571260946,3.48000001,126.96,126.93,8.59826769]
[1764571261327,0.68,126.95,126.93,7.87826769]
[1764571261528,8.63723839,126.96,126.93,8.59826769]
[1764571264565,3.48,126.95,126.93,8.59826769]
[1764571265056,3.48,126.95,126.93,12.35550607]
[1764571265236,3.48,126.95,126.94,0.72]
[1764571265545,3.48,126.95,126.94,5.19723838]
[1764571265846,3.48,126.95,126.94,0.72]
[1764571266235,3.48,126.95,126.94,8.59773751]
[1764571266749,3.48,126.95,126.94,13.07497589]
[1764571266928,3.48,126.95,126.94,8.59773751]
[1764571267944,16.51449957,126.95,126.91,7.87959971]
[1764571268143,4.47723838,126.93,126.9,0.72]
[1764571268331,7.95723838,126.92,126.89,7.88084167]
[1764571268731,7.95723838,126.92,126.9,0.72]
[1764571268929,3.48,126.92,126.9,0.72]
[1764571269537,3.48,126.92,126.9,8.59980967]
[1764571269737,3.48,126.92,126.9,7.87980967]
[1764571269947,3.48,126.92,126.9,8.59980967]
[1764571270352,4.47723838,126.91,126.89,7.88072448]
[1764571270700,4.47723838,126.91,126.85,7.88332676]
[1764571270701,7.95723838,126.9,126.85,7.88332676]
[1764571270954,4.47723838,126.89,126.86,0.72]
[1764571271151,3.48,126.88,126.86,0.72]
[1764571271353,4.47723838,126.87,126.84,8.60368697]
[1764571271652,0.68,126.88,126.85,0.72]
[1764571271844,4.47723838,126.89,126.85,5.19723838]
[1764571272031,0.68,126.9,126.86,4.47723838]
[1764571272237,3.48,126.89,126.87,4.47723838]
[1764571272445,3.48,126.89,126.87,5.19723838]
[1764571273359,3.48,126.89,126.87,8.60186867]
[1764571274051,3.48,126.89,126.87,0.72]
[1764571274453,5.15723838,126.88,126.85,7.88312527]
[1764571274644,5.15723838,126.88,126.85,8.60312527]
[1764571274845,5.15723838,126.88,126.85,7.88312527]
[1764571275036,5.15723838,126.88,126.85,8.60312527]
[1764571275555,5.15723838,126.88,126.85,0.72]
[1764571275757,5.15723838,126.87,126.83,0.72]
[1764571275956,3.48,126.86,126.84,0.72]
[1764571276363,8.63723838,126.86,126.82,0.92]
[1764571276547,4.47723838,126.85,126.82,0.92]
[1764571276741,4.47723838,126.85,126.82,8.80495253]
[1764571276939,13.2871833,126.83,126.82,0.2]
[1764571277138,16.7671833,126.83,126.82,0.2]
[1764571277336,17.4471833,126.83,126.82,0.2]
[1764571277538,25.33175319,126.83,126.82,0.2]
[1764571277740,20.85451481,126.83,126.82,0.2]
[1764571277938,25.33175319,126.83,126.82,0.2]
[1764571279156,41.64061719,126.83,126.82,0.2]
[1764571279563,44.80279751,126.83,126.82,0.2]
[1764571279939,41.64061719,126.83,126.82,0.2]
[1764571283846,38.16061719,126.83,126.82,0.2]
[1764571284052,41.64061719,126.83,126.82,0.2]
[1764571285458,21.17175319,126.83,126.82,0.2]
[1764571285770,24.65175319,126.83,126.82,0.2]
[1764571288967,25.32175319,126.83,126.82,0.2]
[1764571290275,87.32175319,126.83,126.82,0.2]
[1764571290774,86.65175319,126.83,126.82,0.2]
[1764571292651,78.7671833,126.83,126.82,0.87]
[1764571292847,86.65175319,126.83,126.82,0.87]
[1764571293062,86.65175319,126.83,126.82,0.2]
[1764571293374,78.7671833,126.83,126.82,0.2]
[1764571293677,65.48,126.83,126.82,0.87]
[1764571294485,62.0,126.83,126.82,0.87]
[1764571294789,65.48,126.83,126.82,0.87]
[1764571295150,62.0,126.83,126.82,0.87]
[1764571295349,65.48,126.83,126.82,0.87]
[1764571302682,3.48,126.83,126.82,0.87]
[1764571303353,3.48,126.83,126.82,3.73977124]
[1764571304989,62.0,126.85,126.82,11.62496285]
[1764571305165,3.48,126.84,126.83,0.67]
[1764571305364,3.48,126.84,126.83,8.55456989]
[1764571309386,3.48,126.84,126.83,11.42434113]
[1764571310984,3.48,126.84,126.83,8.55456989]
[1764571311163,62.0,126.85,126.83,8.55456989]
[1764571311485,3.48,126.84,126.83,7.88456989]
[1764571312573,3.48,126.84,126.83,8.55456989]
[1764571313080,62.0,126.85,126.83,11.42434113]
[1764571313378,62.0,126.85,126.84,3.53977124]
[1764571313684,3.48,126.86,126.84,3.53977124]
[1764571313986,3.48,126.86,126.85,3.53977124]
[1764571314876,3.48,126.86,126.85,11.423098]
[1764571315073,3.48,126.86,126.85,8.55332676]
[1764571318873,62.0,126.88,126.85,11.423098]
[1764571319072,3.48,126.86,126.85,10.753098]
[1764571319593,3.48,126.86,126.85,11.453098]
[1764571325676,8.80994492,126.91,126.85,31.1614149]
[1764571325875,3.48,126.9,126.88,2.86977124]
[1764571326070,3.48,126.9,126.88,10.75092896]
[1764571326276,0.65,126.94,126.89,3.56977124]
[1764571326490,3.48,126.92,126.9,2.86977124]
[1764571326696,3.48,126.92,126.9,0.7]
[1764571326896,3.48,126.92,126.91,0.7]
[1764571327102,3.48,126.92,126.9,3.56977124]
[1764571327599,3.51977124,126.94,126.91,0.7]
[1764571327778,3.48,126.92,126.91,0.7]
[1764571327985,0.65,126.94,126.91,0.7]
[1764571328179,3.48,126.92,126.91,8.57959971]
[1764571331995,3.48,126.92,126.91,0.7]
[1764571332391,3.48,126.92,126.91,8.57959971]
[1764571333802,3.48,126.92,126.91,11.44937095]
[1764571334609,3.48,126.92,126.91,8.57959971]
[1764571335107,3.48,126.92,126.91,7.87959971]
[1764571335595,3.48,126.92,126.91,8.57959971]
[1764571340503,3.48,126.92,126.9,3.56977124]
[1764571340822,3.48,126.92,126.91,0.7]
[1764571341323,3.48,126.92,126.91,3.56977124]
[1764571342009,3.48,126.92,126.91,0.7]
[1764571343095,3.48,126.92,126.91,8.57959971]
[1764571346719,3.48,126.92,126.91,7.87959971]
[1764571348809,3.48,126.92,126.91,8.57959971]
[1764571349118,3.48,126.92,126.91,7.87959971]
[1764571354523,7.00977124,126.92,126.87,0.7]
[1764571354700,2.86977124,126.89,126.86,0.7]
[1764571354901,3.48,126.88,126.86,0.7]
[1764571355824,3.48,126.88,126.86,8.58233749]
[1764571356210,3.48,126.88,126.87,0.7]
[1764571363437,3.48,126.88,126.86,8.58233749]
[1764571363634,3.48,126.88,126.87,0.7]
[1764571364614,3.48,126.88,126.86,8.58233749]
[1764571365037,3.48,126.88,126.86,7.88233749]
[1764571365217,3.48,126.88,126.87,0.7]
[1764571375640,3.48,126.88,126.87,0.7]
[1764571375825,62.0,126.9,126.87,13.06235994]
[1764571376015,65.48,126.9,126.87,13.06235994]
[1764571376342,3.48,126.9,126.88,0.72]
[1764571376762,3.48,126.9,126.87,7.88200426]
[1764571376916,4.48035568,126.88,126.84,0.72]